lending/lending_fUSD_20251218
["ID","MTS","AMOUNT","RATE_DAILY","PERIOD"]
[398968559,1766032245834,-440.807,0.0001985,2]
[398968561,1766032245845,-664.76928058,0.0001985,2]
[398968567,1766032245895,-85949.26079507,0.0001985,2]
[398968574,1766032245952,-934.65480264,0.0001985,2]
[398970397,1766032335214,651.20337194,0.00018,30]
[398970398,1766032344888,500.0,0.00018,30]
[398970399,1766032345211,500.0,0.00018,30]
[398970400,1766032345604,500.0,0.00017,30]
[398970401,1766032345957,586.11241821,0.00017,30]
[398970402,1766032386380,2182.0,0.00023,120]
[398970405,1766032937307,9590.064284,0.00012073,2]
[398970414,1766033431561,-377.39,0.00013699,2]
[398970416,1766033431571,-190.5486135,0.00015473,2]
[398970427,1766033433310,-309.4513865,0.00015473,2]
[398970428,1766033433320,-364.85840697,0.00016021,2]
[398970429,1766033433330,-250.0,0.000181,2]
[398970430,1766033433339,-203.77230882,0.00019699,2]
[398970431,1766033433348,-300.0,0.00019748,2]
[398970432,1766033433357,-300.0,0.00019748,2]
[398970433,1766033433367,-1200.0,0.00019748,2]
[398970434,1766033433376,-246.16090871,0.00019749,2]
[398970435,1766033433386,-204.93199154,0.00019749,2]
[398970436,1766033433395,-187.6221002,0.00019749,2]
[398970437,1766033433404,-492.57196708,0.00019749,2]
[398970438,1766033433415,-1627.63093019,0.0001975,2]
[398970439,1766033433430,-349.30408729,0.0001975,2]
[398970440,1766033433443,-940.0,0.0001975,2]
[398970453,1766033437614,-565542.15023859,0.0001975,2]
[398970460,1766033437670,-1349.90711029,0.0001975,2]
[398970462,1766033437778,-3081.67201092,0.0001975,2]
[398970463,1766033437789,-2226.80422312,0.0001975,2]
[398970464,1766033437835,-5175.02687909,0.0001975,2]
[398970507,1766033439748,-412.8989822,0.0001975,2]
[398970508,1766033439859,-27651.09163192,0.0001975,2]
[398970509,1766033439967,-242926.67585206,0.0001975,2]
[398970532,1766033447392,-392.96297357,0.0001975,2]
[398970535,1766034631806,-1471.69904892,0.0001901,2]
[398970536,1766034631819,-298.22613208,0.0001901,2]
[398970537,1766034631862,-730.074819,0.0001901,2]
[398970538,1766034631874,-2318.36008956,0.0001901,2]
[398970539,1766034631883,-1200.0,0.00019011,2]
[398970540,1766034631893,-1200.0,0.00019011,2]
[398970541,1766034631902,-300.0,0.00019011,2]
[398970542,1766034631911,-2657.87354434,0.00019012,2]
[398970543,1766034631923,-573.03262368,0.00019012,2]
[398970544,1766034631934,-1326.4511873,0.00019012,2]
[398970545,1766034631946,-504.83378329,0.00019012,2]
[398970546,1766034631957,-4646.54459802,0.00019012,2]
[398970547,1766034631976,-1014.31929586,0.00019012,2]
[398970629,1766034639243,-467.82315922,0.00018098,2]
[398970630,1766034639641,-2244.89684078,0.00018098,2]
[398970631,1766034639669,-733.89364768,0.00019012,2]
[398970632,1766034639680,-343.60656815,0.00019012,2]
[398970633,1766034639692,-821.0,0.00019012,2]
[398970634,1766034639703,-2432.4999999,0.00019012,2]
[398970635,1766034639714,-9576.83339528,0.00019012,2]
[398970636,1766034639723,-2500.0,0.00019138,2]
[398970637,1766034639733,-150.0,0.00019649,2]
[398970638,1766034639742,-2121.03785771,0.00019649,2]
[398970639,1766034639751,-5585.05514641,0.0001965,2]
[398970654,1766034639939,-1902.07,0.0001965,2]
[398970655,1766034639950,-5406.50649121,0.0001965,2]
[398970656,1766034639962,-2860.95238278,0.0001965,2]
[398970657,1766034640000,-904.78125001,0.0001965,2]
[398970658,1766034640012,-776.42636932,0.0001965,2]
[398970659,1766034640059,-519422.9454328,0.0001965,2]
[398970660,1766034640072,-3464.4454591,0.0001965,2]
[398970661,1766034640085,-4355.85,0.0001965,2]
[398970662,1766034640222,-242406.93690578,0.0001965,2]
[398970695,1766034642871,-25981.31607109,0.0001965,2]
[398970696,1766034642912,-662.76,0.0001965,2]
[398970697,1766034643022,-302.05042645,0.0001965,2]
[398970701,1766034645888,-1008.24074895,0.0001965,2]
[398970702,1766034645900,-16804.09074715,0.0001965,2]
[398970703,1766034645911,-705.22999987,0.0001965,2]
[398970704,1766034645996,-351.32197317,0.0001965,2]
[398970707,1766035224337,650.0,0.00022,30]
[398970728,1766035831933,-289.74752152,0.00016199,2]
[398970732,1766035832100,-0.25247848,0.00016199,2]
[398970733,1766035832110,-300.0,0.00016199,2]
[398970734,1766035832119,-1339.51727583,0.000162,5]
[398970753,1766035837992,-15672.82037548,0.000162,5]
[398970754,1766035838002,-200.0,0.0001634,2]
[398970755,1766035838012,-2500.0,0.0001701,2]
[398970756,1766035838022,-390.0,0.00017707,2]
[398970757,1766035838031,-195.0,0.00017819,2]
[398970758,1766035838041,-292.43117635,0.0001782,2]
[398970759,1766035838051,-92.95035558,0.0001782,2]
[398970760,1766035838063,-102.04964442,0.0001782,2]
[398970761,1766035838072,-2500.0,0.0001782,2]
[398970762,1766035838082,-950.81,0.00018992,2]
[398970763,1766035838092,-40920.82035558,0.00019,2]
[398970764,1766035838103,-435.0150005,0.00019,2]
[398970765,1766035838214,-12382.0090856,0.00019,2]
[398970766,1766035838225,-372.2855346,0.00019,2]
[398970783,1766035840082,-5342.87002372,0.00019,2]
[398970784,1766035840093,-599.21350501,0.00019075,2]
[398970785,1766035840103,-1523.45274779,0.00019075,2]
[398970786,1766035840114,-312.81989721,0.00019075,2]
[398970787,1766035840123,-300.0,0.00019299,2]
[398970788,1766035840132,-2500.0,0.00019348,2]
[398970789,1766035840142,-150.0,0.00019404,2]
[398970790,1766035840151,-164.49,0.0001954,2]
[398970791,1766035840161,-151.0,0.00019547,2]
[398970792,1766035840170,-6870.50785679,0.00019548,2]
[398970793,1766035840179,-154.656159,0.00019548,2]
[398970794,1766035840188,-115329.4635934,0.0001955,2]
[398970795,1766035840199,-56651.47195505,0.0001955,2]
[398970796,1766035840214,-841.0,0.0001955,2]
[398970797,1766035840225,-1435.28093581,0.0001955,2]
[398970798,1766035840257,-1087.8115798,0.0001955,2]
[398970799,1766035840271,-2859.88288406,0.0001955,2]
[398970800,1766035840423,-709795.08905188,0.0001955,2]
[398970801,1766035840432,-991.87139861,0.00019648,2]
[398970802,1766035840442,-500.0,0.00019649,2]
[398970803,1766035840451,-500.0,0.00019649,2]
[398970804,1766035840460,-174.03903875,0.00019649,2]
[398970805,1766035840469,-248.6578282,0.0001965,2]
[398970806,1766035840479,-152.52874892,0.0001965,2]
[398970807,1766035840488,-151.0,0.00019681,2]
[398970808,1766035840497,-383.1593281,0.00019684,2]
[398970809,1766035840507,-93709.197805,0.00019684,2]
[398970810,1766035840518,-2864.24,0.00019749,2]
[398970811,1766035840527,-10864.93,0.00019749,2]
[398970812,1766035840537,-490.8,0.00019749,2]
[398970813,1766035840546,-1543.14,0.00019749,2]
[398970814,1766035840557,-9478.18,0.00019749,2]
[398970815,1766035840567,-3173.38,0.00019749,2]
[398970816,1766035840576,-5525.0,0.000198,3]
[398970817,1766035840585,-150.0,0.00019808,2]
[398970818,1766035840596,-511.62107373,0.00019849,2]
[398970819,1766035840607,-150.99,0.00019849,2]
[398970820,1766035840992,-4524.05,0.00019858,2]
[398970821,1766035841032,-999.0,0.00019906,3]
[398970822,1766035841042,-290.98093846,0.00019947,2]
[398970823,1766035841051,-502.73171962,0.00019949,2]
[398970824,1766035841060,-508.21699251,0.00019949,2]
[398970825,1766035841070,-508.78923664,0.00019949,2]
[398970826,1766035841079,-500.0,0.00019949,2]
[398970827,1766035841087,-500.0,0.00019949,2]
[398970828,1766035841097,-1889.97,0.00019949,2]
[398970829,1766035841106,-500.0,0.00019949,2]
[398970830,1766035841115,-500.0,0.00019949,2]
[398970831,1766035841124,-500.0,0.00019949,2]
[398970832,1766035841133,-500.0,0.00019949,2]
[398970833,1766035841143,-500.0,0.00019949,2]
[398970834,1766035841154,-269996.0796559,0.0001995,15]
[398970835,1766035841163,-151.0,0.0001995,2]
[398970836,1766035841173,-151.0,0.0001995,2]
[398970837,1766035841184,-151.0,0.0001995,2]
[398970838,1766035841194,-151.0,0.0001995,2]
[398970839,1766035841205,-209.08210625,0.0001995,2]
[398970840,1766035841215,-153.40587059,0.00020162,2]
[398970841,1766035841227,-11416.01658442,0.00020182,2]
[398970842,1766035841236,-377.39,0.00020187,2]
[398970843,1766035841246,-5525.0,0.000205,5]
[398970844,1766035841256,-200.0,0.00020907,2]
[398970845,1766035841266,-340.0,0.00021,2]
[398970846,1766035841276,-2500.0,0.00021064,2]
[398970847,1766035841286,-166.66,0.00021157,2]
[398970848,1766035841295,-1637.08,0.00021375,2]
[398970849,1766035841305,-166.66,0.00021602,2]
[398970850,1766035841315,-150.0,0.00021725,2]
[398970851,1766035841325,-150.0,0.00021725,2]
[398970852,1766035841337,-194.17176914,0.00021862,2]
[398970853,1766035841350,-150.0,0.00021926,2]
[398970854,1766035841365,-150.0,0.00021926,2]
[398970855,1766035841377,-500.0,0.00021926,2]
[398970856,1766035841391,-200.0,0.00021926,2]
[398970857,1766035841403,-364.2348443,0.00021931,2]
[398970858,1766035841412,-6870.5078567,0.00021931,2]
[398970859,1766035841423,-93709.197805,0.00021999,2]
[398970860,1766035841433,-157.61847,0.00021999,2]
[398970861,1766035841443,-151.0,0.00021999,2]
[398970862,1766035841453,-151.0,0.00021999,2]
[398970863,1766035841463,-151.0,0.00021999,2]
[398970864,1766035841476,-151.0,0.00021999,2]
[398970865,1766035841485,-383.1593281,0.00022026,2]
[398970866,1766035841495,-166.66,0.00022047,30]
[398970867,1766035841506,-842.77413947,0.00022049,2]
[398970868,1766035841517,-150.0,0.00022063,2]
[398970869,1766035841527,-500.0,0.00022063,2]
[398970870,1766035841536,-200.0,0.000222,2]
[398970871,1766035841544,-152.987634,0.000223,2]
[398970872,1766035841554,-166.66,0.00022493,30]
[398970873,1766035841564,-166.66,0.00022938,30]
[398970874,1766035841575,-150.0,0.0002311,30]
[398970875,1766035841585,-150.0,0.0002311,30]
[398970876,1766035841595,-150.0,0.0002311,30]
[398970877,1766035841608,-150.0,0.0002311,30]
[398970878,1766035841619,-150.0,0.00023247,30]
[398970879,1766035841631,-150.0,0.00023247,30]
[398970880,1766035841641,-166.66,0.00023384,30]
[398970881,1766035841650,-200.0,0.00023384,30]
[398970882,1766035841660,-150.0,0.00023384,30]
[398970883,1766035841669,-193.51,0.00023477,2]
[398970884,1766035841679,-150.0,0.00023521,30]
[398970885,1766035841689,-151.0,0.00023521,2]
[398970886,1766035841699,-151.0,0.00023521,2]
[398970887,1766035841708,-169.55560135,0.00023658,30]
[398970888,1766035841718,-160.304357,0.00024276,2]
[398970889,1766035841728,-93709.197805,0.00024314,2]
[398970891,1766035841738,-364.2348443,0.00024314,2]
[398970893,1766035841748,-6870.5078567,0.00024314,2]
[398970895,1766035841759,-500.0,0.00024321,2]
[398970896,1766035841769,-1889.97,0.00024321,2]
[398970898,1766035841778,-500.0,0.00024321,2]
[398970900,1766035841787,-500.0,0.00024321,2]
[398970902,1766035841796,-500.0,0.00024321,2]
[398970904,1766035841806,-5000.0,0.00024321,2]
[398970905,1766035841815,-383.1593281,0.00024368,2]
[398970906,1766035841824,-168.0,0.00024485,2]
[398970907,1766035841833,-168.0,0.00024584,2]
[398970908,1766035841842,-1000.0,0.00024658,2]
[398970909,1766035841852,-494.4,0.00024658,6]
[398970910,1766035841861,-453.6,0.00024658,4]
[398970911,1766035841870,-541.2,0.00024658,3]
[398970912,1766035841878,-168.0,0.00024811,2]
[398970913,1766035841888,-301.0,0.00024864,7]
[398970914,1766035841898,-151.0,0.000249,7]
[398970915,1766035841907,-2205.96867888,0.000249,2]
[398970916,1766035841917,-301.0,0.00024961,2]
[398970917,1766035841926,-168.0,0.00025242,2]
[398970919,1766035841935,-168.0,0.0002534,2]
[398970921,1766035841944,-168.0,0.00025367,2]
[398970922,1766035841954,-150.0,0.00025373,3]
[398970923,1766035841965,-150.0,0.00025373,3]
[398970924,1766035841975,-168.0,0.00025401,2]
[398970925,1766035841985,-302.0,0.00025475,2]
[398970926,1766035841995,-150.0,0.0002551,3]
[398970927,1766035842004,-150.0,0.0002551,3]
[398970928,1766035842014,-168.0,0.00025643,2]
[398970929,1766035842024,-200.0,0.00025647,3]
[398970930,1766035842034,-150.0,0.00025647,3]
[398970931,1766035842045,-168.0,0.00025707,2]
[398970932,1766035842054,-168.0,0.00025751,2]
[398970933,1766035842064,-150.0,0.00025784,3]
[398970934,1766035842073,-168.0,0.00025824,2]
[398970935,1766035842083,-168.0,0.00025887,2]
[398970936,1766035842093,-250.0,0.00025921,3]
[398970937,1766035842114,-200.0,0.00025996,2]
[398970938,1766035842130,-301.0,0.00026018,2]
[398970939,1766035842143,-168.0,0.00026044,2]
[398970940,1766035842157,-168.0,0.00026049,2]
[398970941,1766035842166,-168.0,0.00026268,2]
[398970942,1766035842177,-168.0,0.00026397,2]
[398970943,1766035842188,-336.76,0.00026591,2]
[398970944,1766035842199,-462.54,0.00026591,2]
[398970945,1766035842211,-9999.99,0.00026591,2]
[398970946,1766035842221,-150.0,0.00026603,2]
[398970947,1766035842231,-168.0,0.00026603,2]
[398970948,1766035842240,-151.0,0.00026628,7]
[398970949,1766035842250,-151.0,0.00026628,7]
[398970950,1766035842259,-164.24458,0.00026628,7]
[398970951,1766035842268,-151.0,0.00026628,7]
[398970952,1766035842279,-93709.197805,0.00026629,2]
[398970953,1766035842289,-377.39,0.00026676,2]
[398970954,1766035842299,-364.2348443,0.00026697,2]
[398970955,1766035842308,-6870.5078567,0.00026697,2]
[398970956,1766035842317,-383.1593281,0.0002671,2]
[398970957,1766035842327,-168.0,0.00026762,2]
[398970958,1766035842336,-174.03903874,0.00026766,2]
[398970959,1766035842345,-168.0,0.00026814,2]
[398970960,1766035842355,-168.0,0.00026902,2]
[398970961,1766035842364,-245.19,0.00027397,2]
[398970962,1766035842373,-297.756063,0.00027397,7]
[398970963,1766035842383,-297.756063,0.00027397,7]
[398970964,1766035842392,-297.756063,0.00027397,7]
[398970965,1766035842401,-297.756063,0.00027397,7]
[398970966,1766035842412,-297.756063,0.00027397,7]
[398970967,1766035842421,-297.756063,0.00027397,7]
[398970968,1766035842430,-297.756063,0.00027397,7]
[398970969,1766035842440,-297.756063,0.00027397,7]
[398970970,1766035842449,-151.0,0.00027397,7]
[398970971,1766035842460,-151.0,0.00027397,7]
[398970972,1766035842470,-151.0,0.00027397,7]
[398970973,1766035842480,-151.0,0.00027397,7]
[398970974,1766035842490,-151.0,0.00027397,7]
[398970975,1766035842499,-151.0,0.00027397,7]
[398970976,1766035842509,-337.56,0.00028468,2]
[398970977,1766035842518,-1000.0,0.00028616,2]
[398970978,1766035842528,-500.0,0.00028954,14]
[398970979,1766035842537,-364.2348443,0.0002908,2]
[398970980,1766035842547,-6870.5078567,0.0002908,2]
[398970981,1766035842556,-508.98,0.00029499,30]
[398970982,1766035842565,-500.0,0.00029878,60]
[398970983,1766035842574,-2712.72,0.00029878,2]
[398970984,1766035842583,-163.74,0.0003,2]
[398970985,1766035842593,-659.2,0.00030137,15]
[398970986,1766035842605,-604.8,0.00030137,17]
[398970987,1766035842614,-721.6,0.00030137,15]
[398970988,1766035842623,-164.78,0.000302,30]
[398970989,1766035842632,-153.40587059,0.00030243,2]
[398970990,1766035842643,-364.2348443,0.00031463,2]
[398970991,1766035842652,-6870.5078567,0.00031463,2]
[398970992,1766035842662,-1000.0,0.00032194,2]
[398970993,1766035842673,-991.87139861,0.00032873,2]
[398970994,1766035842683,-180.953656,0.00032877,31]
[398970995,1766035842692,-180.953656,0.00032877,31]
[398970996,1766035842701,-180.953656,0.00032877,31]
[398970997,1766035842711,-180.953656,0.00032877,31]
[398970998,1766035842720,-180.953656,0.00032877,31]
[398970999,1766035842729,-180.953656,0.00032877,31]
[398971000,1766035842738,-180.953656,0.00032877,31]
[398971001,1766035842747,-180.953656,0.00032877,31]
[398971002,1766035842756,-151.0,0.00032877,7]
[398971003,1766035842766,-151.0,0.00032877,7]
[398971004,1766035842775,-151.0,0.00032877,7]
[398971005,1766035842784,-151.298812,0.00032877,7]
[398971006,1766035842793,-151.0,0.00032877,31]
[398971007,1766035842802,-500.0,0.00032877,7]
[398971009,1766035842811,-594.70180724,0.00032877,7]
[398971011,1766035842821,-377.39,0.00033165,2]
[398971013,1766035842830,-161.46,0.00033564,2]
[398971015,1766035842839,-364.2348443,0.00033846,2]
[398971017,1766035842850,-6870.5078567,0.00033846,2]
[398971019,1766035842859,-174.03903874,0.00033883,2]
[398971020,1766035842868,-167.10676659,0.00034047,2]
[398971021,1766035842877,-508.98,0.00034334,30]
[398971022,1766035842886,-168.0,0.000348,2]
[398971023,1766035842896,-174.28617762,0.00034892,40]
[398971024,1766035842905,-1149.494,0.00034892,40]
[398971025,1766035842915,-151.0,0.00034893,14]
[398971026,1766035842924,-10272.0,0.00034893,5]
[398971027,1766035842933,-494.4,0.00035616,119]
[398971028,1766035842943,-453.6,0.00035616,77]
[398971029,1766035842952,-541.2,0.00035616,67]
[398971030,1766035842962,-1000.0,0.00035771,2]
[398971031,1766035842971,-562.75,0.00035805,2]
[398971032,1766035842981,-170.56,0.00035973,2]
[398971033,1766035842991,-150.0,0.00035973,2]
[398971034,1766035843000,-178.33,0.00035973,2]
[398971035,1766035843009,-170.56,0.00035973,2]
[398971036,1766035843020,-464.41,0.00035973,2]
[398971037,1766035843029,-150.0,0.00035973,2]
[398971038,1766035843039,-178.33,0.00035973,2]
[398971039,1766035843049,-169.96,0.00035973,2]
[398971040,1766035843058,-464.41,0.00035973,2]
[398971041,1766035843068,-178.33,0.00035973,2]
[398971042,1766035843078,-339.19,0.00035973,2]
[398971043,1766035843088,-464.41,0.00035973,2]
[398971044,1766035843097,-364.2348443,0.00036229,2]
[398971045,1766035843107,-6870.5078567,0.00036229,2]
[398971046,1766035843116,-150.0,0.0003649,2]
[398971047,1766035843125,-486.99,0.0003649,2]
[398971048,1766035843135,-1106.68,0.0003649,2]
[398971049,1766035843144,-178.33,0.0003649,2]
[398971050,1766035843154,-1009.0,0.000366,7]
[398971051,1766035843163,-462.95,0.00036795,2]
[398971052,1766035843172,-170.49,0.00036795,2]
[398971053,1766035843182,-150.0,0.00036962,7]
[398971054,1766035843191,-150.0,0.00036962,7]
[398971055,1766035843200,-150.0,0.00036962,7]
[398971056,1766035843210,-215.90077471,0.00036962,7]
[398971057,1766035843219,-150.0,0.00036962,7]
[398971058,1766035843228,-150.0,0.00036962,7]
[398971059,1766035843238,-150.0,0.00036962,7]
[398971060,1766035843247,-161.07468105,0.00036962,7]
[398971061,1766035843257,-151.6302387,0.00036962,7]
[398971062,1766035843266,-184.82036525,0.00036962,7]
[398971063,1766035843275,-190.68028635,0.00036962,7]
[398971064,1766035843284,-267.37309678,0.00036962,7]
[398971065,1766035843294,-154.73115032,0.00036962,7]
[398971066,1766035843303,-356.4,0.00036986,2]
[398971067,1766035843312,-317.63,0.00037375,2]
[398971068,1766035843322,-5506.0,0.000378,117]
[398971069,1766035843331,-150.0,0.00037988,7]
[398971070,1766035843341,-2500.0,0.00038,120]
[398971071,1766035843350,-2931.36,0.00038,60]
[398971072,1766035843359,-150.0,0.00038331,7]
[398971073,1766035843368,-500.0,0.00038341,2]
[398971074,1766035843378,-500.0,0.00038341,2]
[398971075,1766035843387,-9552.16786547,0.00038341,2]
[398971076,1766035843396,-500.0,0.00038341,2]
[398971077,1766035843406,-500.0,0.00038341,2]
[398971078,1766035843415,-500.0,0.00038341,2]
[398971079,1766035843424,-500.0,0.00038341,2]
[398971080,1766035843433,-500.0,0.00038341,2]
[398971081,1766035843442,-500.0,0.00038341,2]
[398971083,1766035843451,-500.0,0.00038341,2]
[398971084,1766035843460,-500.0,0.00038341,2]
[398971085,1766035843469,-500.0,0.00038341,2]
[398971086,1766035843479,-500.0,0.00038341,2]
[398971087,1766035843488,-500.0,0.00038341,2]
[398971088,1766035843497,-500.0,0.00038341,2]
[398971090,1766035843506,-500.0,0.00038341,2]
[398971091,1766035843515,-500.0,0.00038341,2]
[398971093,1766035843524,-500.0,0.00038341,2]
[398971094,1766035843533,-500.0,0.00038341,2]
[398971095,1766035843542,-500.0,0.00038341,2]
[398971096,1766035843551,-500.0,0.00038341,2]
[398971097,1766035843560,-1212.0,0.00038341,2]
[398971098,1766035843570,-825.16303523,0.00038341,2]
[398971099,1766035843579,-500.0,0.00038341,2]
[398971100,1766035843588,-527.63961609,0.00038341,2]
[398971101,1766035843598,-500.0,0.00038341,2]
[398971102,1766035843608,-500.0,0.00038341,2]
[398971103,1766035843617,-500.0,0.00038341,2]
[398971104,1766035843626,-500.0,0.00038341,2]
[398971105,1766035843635,-500.0,0.00038341,2]
[398971106,1766035843644,-500.0,0.00038341,2]
[398971107,1766035843653,-500.0,0.00038341,2]
[398971108,1766035843662,-500.0,0.00038341,2]
[398971109,1766035843670,-446.05351642,0.00038341,2]
[398971110,1766035843679,-200.0,0.00038356,30]
[398971111,1766035843688,-41176.92421284,0.00038396,5]
[398971112,1766035843697,-581.87332713,0.00038396,5]
[398971113,1766035843706,-156.620618,0.00038396,120]
[398971114,1766035843715,-9905.5980765,0.00038396,2]
[398971115,1766035843724,-10272.10520533,0.00038451,2]
[398971116,1766035843733,-10652.17309792,0.00038506,2]
[398971117,1766035843742,-180.953656,0.00038561,120]
[398971118,1766035843751,-180.953656,0.00038561,120]
[398971119,1766035843760,-180.953656,0.00038561,120]
[398971120,1766035843769,-180.953656,0.00038561,120]
[398971121,1766035843778,-297.756063,0.00038561,120]
[398971122,1766035843788,-297.756063,0.00038561,120]
[398971123,1766035843799,-297.756063,0.00038561,120]
[398971124,1766035843808,-297.756063,0.00038561,120]
[398971125,1766035843818,-151.0,0.00038561,120]
[398971126,1766035843827,-151.0,0.00038561,120]
[398971127,1766035843837,-151.0,0.00038561,120]
[398971128,1766035843847,-151.0,0.00038561,120]
[398971129,1766035843856,-151.0,0.00038561,120]
[398971130,1766035843865,-11046.30350255,0.00038561,2]
[398971131,1766035843875,-364.2348443,0.00038612,2]
[398971132,1766035843884,-6870.5078567,0.00038612,2]
[398971133,1766035843894,-11455.01673214,0.00038616,2]
[398971134,1766035843903,-528.3033579,0.00038616,2]
[398971135,1766035843911,-11878.85235123,0.00038671,2]
[398971136,1766035843920,-12318.36988823,0.00038726,2]
[398971137,1766035843929,-3324.69834367,0.00038781,2]
[398971138,1766035843938,-1212.0,0.00038889,2]
[398971139,1766035843947,-150.0,0.00038904,120]
[398971140,1766035843956,-150.0,0.00038904,120]
[398971141,1766035843966,-150.0,0.00039015,7]
[398971142,1766035843975,-150.0,0.00039015,7]
[398971143,1766035843985,-150.0,0.00039015,7]
[398971144,1766035843994,-150.0,0.00039015,7]
[398971145,1766035844004,-350.0,0.00039123,120]
[398971146,1766035844014,-300.0,0.00039123,120]
[398971147,1766035844024,-2435.32,0.0003916,120]
[398971148,1766035844033,-508.98,0.00039169,120]
[398971149,1766035844050,-2434.9,0.0003926,120]
[398971150,1766035844065,-150.0,0.0003926,2]
[398971151,1766035844075,-150.0,0.0003926,2]
[398971152,1766035844084,-150.0,0.0003926,2]
[398971153,1766035844094,-150.0,0.0003926,2]
[398971154,1766035844105,-450.0,0.00039342,120]
[398971155,1766035844115,-1000.0,0.00039348,2]
[398971156,1766035844124,-1212.0,0.00039437,2]
[398971157,1766035844136,-1216.68,0.00039438,120]
[398971158,1766035844146,-1218.15,0.00039438,120]
[398971159,1766035844156,-1218.15,0.00039438,120]
[398971160,1766035844168,-658.92,0.00039536,2]
[398971161,1766035844177,-658.92,0.00039536,2]
[398971162,1766035844189,-961.34,0.00039536,2]
[398971163,1766035844199,-236.65,0.00039536,2]
[398971164,1766035844210,-480.97,0.00039536,2]
[398971165,1766035844219,-480.97,0.00039536,2]
[398971166,1766035844229,-480.97,0.00039536,2]
[398971167,1766035844238,-600.0,0.00039561,120]
[398971168,1766035844248,-377.39,0.00039654,2]
[398971169,1766035844257,-1217.86,0.00039655,120]
[398971170,1766035844266,-1216.63,0.00039671,120]
[398971171,1766035844275,-1269.58,0.00039678,120]
[398971172,1766035844285,-150.0,0.000397,7]
[398971173,1766035844295,-1218.15,0.00039719,120]
[398971174,1766035844304,-750.0,0.0003978,120]
[398971175,1766035844313,-337.56,0.00039855,2]
[398971176,1766035844322,-255.60223587,0.000399,2]
[398971177,1766035844333,-1243.15,0.0003991,120]
[398971178,1766035844343,-1212.0,0.00039985,2]
[398971179,1766035844354,-500.0,0.00039999,60]
[398971180,1766035844364,-1889.97,0.00039999,60]
[398971181,1766035844374,-500.0,0.00039999,60]
[398971182,1766035844384,-500.0,0.00039999,60]
[398971183,1766035844394,-260.48,0.00039999,60]
[398971184,1766035844404,-500.0,0.00039999,60]
[398971185,1766035844414,-152.56,0.0004,120]
[398971186,1766035844423,-500.0,0.0004,2]
[398971187,1766035844434,-300.0,0.0004,2]
[398971188,1766035844443,-56868.13666253,0.0004,2]
[398971189,1766035844453,-1000.0,0.0004,120]
[398971190,1766035844463,-10000.0,0.0004,90]
[398971191,1766035844472,-180.953656,0.0004,120]
[398971192,1766035844481,-180.953656,0.0004,120]
[398971193,1766035844491,-180.953656,0.0004,120]
[398971194,1766035844501,-180.953656,0.0004,120]
[398971195,1766035844511,-297.756063,0.0004,120]
[398971196,1766035844520,-297.756063,0.0004,120]
[398971197,1766035844530,-297.756063,0.0004,120]
[398971198,1766035844539,-297.756063,0.0004,120]
[398971199,1766035844548,-151.0,0.0004,120]
[398971200,1766035844558,-151.0,0.0004,120]
[398971201,1766035844568,-151.0,0.0004,120]
[398971202,1766035844578,-169.426968,0.0004,120]
[398971203,1766035844589,-761.41,0.0004,120]
[398971204,1766035844599,-150.0,0.00040042,7]
[398971205,1766035844610,-150.0,0.00040082,2]